[Event "Groningen Festival 2019-B"]
[Site "Groningen"]
[Date "2019.12.29"]
[Round "8.1"]
[White "Slagter, Ruben"]
[Black "Novotny, David"]
[Result "1-0"]
[ECO "A03"]
[WhiteElo "2077"]
[BlackElo "1810"]
[Annotator "NA"]
[PlyCount "99"]
[EventDate "2019.12.15"]
[EventType "swiss"]
[EventCountry "NED"]
[SourceTitle "playchess.com"]
[Source "ChessBase"]
[SourceQuality "1"]
[TimeControl "40/5400+30:1800+30"]

1. b3 {[%emt 0:00:00]} d5 {[%emt 0:03:28]} 2. Bb2 {[%emt 0:00:00]} Bf5 {[%emt 0:00:36]} 3. e3 {[%emt 0:04:10]} Nd7 {[%emt 0:02:56]} 4. f4 {[%emt 0:03:52]} Ngf6 {[%emt 0:02:25]} 5. Nf3 {[%emt 0:01:59]} e6 {[%emt 0:03:50]} 6. Be2 {[%emt 0:03:38]} Bd6 {[%emt 0:03:10]} 7. O-O {[%emt 0:02:03]} h6 {[%emt 0:04:51]} 8. Ne5 {[%emt 0:05:57]} Qe7 {[%emt 0:05:08]} 9. c4 {[%emt 0:02:58]} O-O-O {[%emt 0:04:33]} 10. Nxd7 {[%emt 0:06:10]} Rxd7 {[%emt 0:03:51]} 11. d4 {[%emt 0:10:22]} c6 {[%emt 0:02:24]} 12. b4 {[%emt 0:12:21]} dxc4 {[%emt 0:17:36]} 13. Bxc4 {[%emt 0:13:13]} Bxb4 {[%emt 0:01:27]} 14. Qa4 {[%emt 0:01:09]} Kb8 {[%emt 0:08:23]} 15. Qb3 {[%emt 0:03:18]} g5 {[%emt 0:08:43]} 16. Ba3 {[%emt 0:08:01]} Bxa3 {[%emt 0:01:56]} 17. Nxa3 {[%emt 0:00:06]} Ne4 {[%emt 0:02:48]} 18. Qb2 {[%emt 0:03:13]} Rg8 {[%emt 0:03:30]} 19. Bd3 {[%emt 0:01:48]} c5 {[%emt 0:08:49]} 20. Nc4 {[%emt 0:02:35]} f6 {[%emt 0:02:54]} 21. Qc2 {[%emt 0:00:56]} cxd4 {[%emt 0:01:40]} 22. Rae1 {[%emt 0:06:55]} Qc5 {[%emt 0:02:27]} 23. Bxe4 {[%emt 0:02:19]} d3 {[%emt 0:00:12]} 24. Qa4 {[%emt 0:00:16]} Bxe4 {[%emt 0:02:04]} 25. Qxd7 {[%emt 0:00:10]} gxf4 {[%emt 0:00:43]} 26. Qd6+ {[%emt 0:00:15]} Qxd6 {[%emt 0:00:13]} 27. Nxd6 {[%emt 0:00:06]} Rxg2+ {[%emt 0:02:00]} 28. Kh1 {[%emt 0:00:04]} Bc6 {[%emt 0:00:16]} 29. e4 {[%emt 0:00:44]} Rxa2 {[%emt 0:00:42]} 30. Kg1 {[%emt 0:02:19]} Kc7 {[%emt 0:00:11]} 31. Nf7 {[%emt 0:02:12]} f5 {[%emt 0:00:29]} 32. Rxf4 {[%emt 0:01:46]} Bxe4 {[%emt 0:00:32]} 33. Rf2 {[%emt 0:00:06]} Ra5 {[%emt 0:00:59]} 34. Nxh6 {[%emt 0:00:32]} b5 {[%emt 0:00:22]} 35. Nf7 {[%emt 0:00:10]} b4 {[%emt 0:00:10]} 36. Ng5 {[%emt 0:00:05]} Bd5 {[%emt 0:01:11]} 37. Nxe6+ {[%emt 0:00:14]} Kd6 {[%emt 0:00:26]} 38. Nd4 {[%emt 0:00:22]} Kc5 {[%emt 0:00:21]} 39. Nxf5 {[%emt 0:00:34]} b3 {[%emt 0:00:12]} 40. Ne3 {[%emt 0:01:09]} Kb4 {[%emt 0:01:00]} 41. Rf5 {[%emt 0:09:39]} Bg8 {[%emt 0:14:29]} 42. Rxa5 {[%emt 0:01:45]} Kxa5 {[%emt 0:00:39]} 43. Ra1+ {[%emt 0:01:51]} Kb4 {[%emt 0:11:22]} 44. Rxa7 {[%emt 0:01:11]} Kc3 {[%emt 0:00:22]} 45. Kf2 {[%emt 0:02:24]} b2 {[%emt 0:01:20]} 46. Nd1+ {[%emt 0:00:37]} Kc2 {[%emt 0:00:26]} 47. Nxb2 {[%emt 0:00:06]} Kxb2 {[%emt 0:00:23]} 48. Ke3 {[%emt 0:00:15]} Bc4 {[%emt 0:00:53]} 49. Kd2 {[%emt 0:00:28]} Kb3 {[%emt 0:00:54]} 50. h4 {[%emt 0:00:28]} 1-0

[Event "Groningen Festival 2019-B"]
[Site "Groningen"]
[Date "2019.12.29"]
[Round "8.2"]
[White "Akotchik, Victor"]
[Black "Salihbegovic, Edim"]
[Result "1-0"]
[ECO "C02"]
[WhiteElo "2095"]
[BlackElo "2011"]
[Annotator "NA"]
[PlyCount "79"]
[EventDate "2019.12.15"]
[EventType "swiss"]
[EventCountry "NED"]
[SourceTitle "playchess.com"]
[Source "ChessBase"]
[SourceQuality "1"]
[TimeControl "40/5400+30:1800+30"]

1. e4 {[%emt 0:01:38]} e6 {[%emt 0:00:00]} 2. d4 {[%emt 0:00:09]} d5 {[%emt 0:00:00]} 3. e5 {[%emt 0:00:05]} c5 {[%emt 0:00:00]} 4. c3 {[%emt 0:00:05]} Nc6 {[%emt 0:00:00]} 5. Nf3 {[%emt 0:00:06]} Bd7 {[%emt 0:00:02]} 6. a3 {[%emt 0:00:37]} f6 {[%emt 0:00:07]} 7. Bd3 {[%emt 0:00:41]} Qc7 {[%emt 0:00:45]} 8. O-O {[%emt 0:00:46]} O-O-O {[%emt 0:05:47]} 9. Bf4 {[%emt 0:09:42]} c4 {[%emt 0:01:36]} 10. Bc2 {[%emt 0:00:20]} h6 {[%emt 0:17:04]} 11. Bg3 {[%emt 0:04:36]} f5 {[%emt 0:08:05]} 12. h4 {[%emt 0:01:30]} Be8 {[%emt 0:02:32]} 13. Nbd2 {[%emt 0:04:22]} Be7 {[%emt 0:08:11]} 14. Bf4 {[%emt 0:03:27]} Bh5 {[%emt 0:09:32]} 15. Qe1 {[%emt 0:02:30]} Rf8 {[%emt 0:04:57]} 16. g3 {[%emt 0:04:28]} Rf7 {[%emt 0:07:13]} 17. Qe3 {[%emt 0:14:52]} Na5 {[%emt 0:04:44]} 18. Ba4 {[%emt 0:11:49]} g6 {[%emt 0:03:09]} 19. Rfb1 {[%emt 0:12:22]} Rg7 {[%emt 0:02:32]} 20. b3 {[%emt 0:04:30]} cxb3 {[%emt 0:01:47]} 21. c4 {[%emt 0:01:36]} Bxf3 {[%emt 0:02:39]} 22. Qxf3 {[%emt 0:00:36]} dxc4 {[%emt 0:02:55]} 23. d5 {[%emt 0:01:12]} exd5 {[%emt 0:00:36]} 24. Qxd5 {[%emt 0:03:22]} g5 {[%emt 0:07:36]} 25. Be3 {[%emt 0:03:11]} Kb8 {[%emt 0:00:11]} 26. h5 {[%emt 0:01:09]} Bd8 {[%emt 0:04:31]} 27. Qd4 {[%emt 0:10:37]} b6 {[%emt 0:00:36]} 28. Rc1 {[%emt 0:00:37]} Be7 {[%emt 0:02:12]} 29. Nxc4 {[%emt 0:01:00]} Bc5 {[%emt 0:00:52]} 30. Qb2 {[%emt 0:00:44]} Nxc4 {[%emt 0:01:41]} 31. Rxc4 {[%emt 0:00:03]} Ne7 {[%emt 0:02:09]} 32. Bxc5 {[%emt 0:00:58]} bxc5 {[%emt 0:00:09]} 33. Rac1 {[%emt 0:00:29]} Rd8 {[%emt 0:01:31]} 34. Rxc5 {[%emt 0:01:17]} Rd1+ {[%emt 0:00:37]} 35. Kh2 {[%emt 0:00:20]} Rxc1 {[%emt 0:00:29]} 36. Qxc1 {[%emt 0:00:49]} Qd8 {[%emt 0:00:42]} 37. Rb5+ {[%emt 0:00:35]} Ka8 {[%emt 0:00:15]} 38. Rxb3 {[%emt 0:00:35]} Qd5 {[%emt 0:00:44]} 39. Qc7 {[%emt 0:00:39]} Rg8 {[%emt 0:00:29]} 40. Qxe7 {[%emt 0:00:13]} 1-0

[Event "Groningen Festival 2019-B"]
[Site "Groningen"]
[Date "2019.12.29"]
[Round "8.3"]
[White "De Vries, Leon"]
[Black "Labruyere, Roger"]
[Result "1-0"]
[ECO "B52"]
[WhiteElo "1934"]
[BlackElo "1933"]
[Annotator "NA"]
[PlyCount "85"]
[EventDate "2019.12.15"]
[EventType "swiss"]
[EventCountry "NED"]
[SourceTitle "playchess.com"]
[Source "ChessBase"]
[SourceQuality "1"]
[TimeControl "40/5400+30:1800+30"]

1. e4 {[%emt 0:00:00]} c5 {[%emt 0:00:00]} 2. Nf3 {[%emt 0:00:00]} d6 {[%emt 0:00:00]} 3. Bb5+ {[%emt 0:00:32]} Bd7 {[%emt 0:00:00]} 4. Bxd7+ {[%emt 0:00:09]} Qxd7 {[%emt 0:00:00]} 5. c4 {[%emt 0:00:34]} Nc6 {[%emt 0:00:30]} 6. Nc3 {[%emt 0:00:24]} g6 {[%emt 0:00:14]} 7. d4 {[%emt 0:00:24]} cxd4 {[%emt 0:00:06]} 8. Nxd4 {[%emt 0:00:08]} Bg7 {[%emt 0:00:15]} 9. Be3 {[%emt 0:00:24]} Nf6 {[%emt 0:00:13]} 10. f3 {[%emt 0:00:52]} O-O {[%emt 0:00:16]} 11. O-O {[%emt 0:00:16]} Rfc8 {[%emt 0:00:21]} 12. b3 {[%emt 0:01:14]} a6 {[%emt 0:00:18]} 13. Qd2 {[%emt 0:04:09]} Nxd4 {[%emt 0:01:57]} 14. Bxd4 {[%emt 0:00:18]} b5 {[%emt 0:01:40]} 15. Rac1 {[%emt 0:09:02]} e5 {[%emt 0:12:19]} 16. Be3 {[%emt 0:02:41]} bxc4 {[%emt 0:00:32]} 17. Na4 {[%emt 0:00:30]} c3 {[%emt 0:05:34]} 18. Nxc3 {[%emt 0:08:07]} Rd8 {[%emt 0:10:47]} 19. Bg5 {[%emt 0:02:08]} Qa7+ {[%emt 0:15:51]} 20. Kh1 {[%emt 0:17:45]} Rd7 {[%emt 0:03:25]} 21. Bxf6 {[%emt 0:00:46]} Bxf6 {[%emt 0:00:02]} 22. Nd5 {[%emt 0:00:48]} Bd8 {[%emt 0:08:30]} 23. g4 {[%emt 0:06:11]} Kg7 {[%emt 0:05:44]} 24. Rc4 {[%emt 0:08:12]} h6 {[%emt 0:05:06]} 25. Qc3 {[%emt 0:05:13]} Bb6 {[%emt 0:00:55]} 26. Rc1 {[%emt 0:07:46]} Bd4 {[%emt 0:00:52]} 27. Qd3 {[%emt 0:00:52]} a5 {[%emt 0:04:53]} 28. Rc7 {[%emt 0:08:14]} Rxc7 {[%emt 0:00:07]} 29. Rxc7 {[%emt 0:00:05]} Qb8 {[%emt 0:00:51]} 30. Qc4 {[%emt 0:00:50]} Bc5 {[%emt 0:03:13]} 31. Rd7 {[%emt 0:05:04]} Qe8 {[%emt 0:01:30]} 32. Rb7 {[%emt 0:01:46]} Rc8 {[%emt 0:01:00]} 33. Nc7 {[%emt 0:00:44]} Qc6 {[%emt 0:05:24]} 34. Ne6+ {[%emt 0:00:15]} Kg8 {[%emt 0:00:11]} 35. Nxc5 {[%emt 0:00:05]} d5 {[%emt 0:00:14]} 36. exd5 {[%emt 0:02:55]} Qxc5 {[%emt 0:00:13]} 37. d6 {[%emt 0:00:34]} Qxc4 {[%emt 0:01:06]} 38. bxc4 {[%emt 0:00:17]} Kf8 {[%emt 0:01:02]} 39. d7 {[%emt 0:00:18]} Rd8 {[%emt 0:05:26]} 40. c5 {[%emt 0:00:34]} Ke7 {[%emt 0:00:26]} 41. c6 {[%emt 0:30:08]} Ra8 {[%emt 0:32:07]} 42. c7 {[%emt 0:01:34]} Kxd7 {[%emt 0:00:49]} 43. Rb8 {[%emt 0:00:06]} 1-0

[Event "Groningen Festival 2019-B"]
[Site "Groningen"]
[Date "2019.12.29"]
[Round "8.4"]
[White "Ritter, Uwe"]
[Black "Muller, Kenneth"]
[Result "1-0"]
[ECO "B01"]
[WhiteElo "1981"]
[BlackElo "1806"]
[Annotator "NA"]
[PlyCount "127"]
[EventDate "2019.12.15"]
[EventType "swiss"]
[EventCountry "NED"]
[SourceTitle "playchess.com"]
[Source "ChessBase"]
[SourceQuality "1"]
[TimeControl "40/5400+30:1800+30"]

1. e4 {[%emt 0:00:00]} d5 {[%emt 0:00:33]} 2. exd5 {[%emt 0:00:00]} Qxd5 {[%emt 0:00:10]} 3. Nc3 {[%emt 0:00:00]} Qd8 {[%emt 0:00:08]} 4. d4 {[%emt 0:00:00]} Nf6 {[%emt 0:00:03]} 5. Nf3 {[%emt 0:00:00]} Bg4 {[%emt 0:00:06]} 6. h3 {[%emt 0:00:05]} Bxf3 {[%emt 0:00:07]} 7. Qxf3 {[%emt 0:00:06]} c6 {[%emt 0:00:03]} 8. Be3 {[%emt 0:00:05]} e6 {[%emt 0:00:11]} 9. Bc4 {[%emt 0:04:08]} Nbd7 {[%emt 0:02:10]} 10. O-O-O {[%emt 0:03:31]} Qc7 {[%emt 0:08:36]} 11. Rhe1 {[%emt 0:15:09]} O-O-O {[%emt 0:04:49]} 12. Bg5 {[%emt 0:13:21]} h6 {[%emt 0:10:18]} 13. Bf4 {[%emt 0:00:46]} Bd6 {[%emt 0:01:31]} 14. Bxd6 {[%emt 0:00:38]} Qxd6 {[%emt 0:00:13]} 15. Ne4 {[%emt 0:04:22]} Qb4 {[%emt 0:06:07]} 16. c3 {[%emt 0:02:22]} Qe7 {[%emt 0:04:44]} 17. Kb1 {[%emt 0:06:17]} Nxe4 {[%emt 0:07:50]} 18. Qxe4 {[%emt 0:02:21]} Nf6 {[%emt 0:01:33]} 19. Qe2 {[%emt 0:01:54]} Qc7 {[%emt 0:04:08]} 20. Qe5 {[%emt 0:01:35]} Rd7 {[%emt 0:02:00]} 21. Qxc7+ {[%emt 0:07:13]} Kxc7 {[%emt 0:00:27]} 22. Re5 {[%emt 0:00:42]} Rhd8 {[%emt 0:04:29]} 23. Rde1 {[%emt 0:00:48]} Nd5 {[%emt 0:05:11]} 24. Bxd5 {[%emt 0:00:09]} Rxd5 {[%emt 0:01:42]} 25. Kc2 {[%emt 0:00:21]} Rxe5 {[%emt 0:05:36]} 26. dxe5 {[%emt 0:00:25]} c5 {[%emt 0:02:21]} 27. Re3 {[%emt 0:03:36]} Kc6 {[%emt 0:03:45]} 28. Rf3 {[%emt 0:05:35]} Rd7 {[%emt 0:02:00]} 29. c4 {[%emt 0:06:06]} a6 {[%emt 0:01:28]} 30. Rd3 {[%emt 0:01:05]} Re7 {[%emt 0:03:24]} 31. g4 {[%emt 0:01:41]} f6 {[%emt 0:02:31]} 32. exf6 {[%emt 0:02:09]} gxf6 {[%emt 0:01:13]} 33. Rd8 {[%emt 0:01:25]} h5 {[%emt 0:03:25]} 34. Rf8 {[%emt 0:00:23]} hxg4 {[%emt 0:00:09]} 35. hxg4 {[%emt 0:00:01]} Rg7 {[%emt 0:01:41]} 36. f3 {[%emt 0:05:27]} Rg6 {[%emt 0:00:36]} 37. b3 {[%emt 0:01:03]} Kd6 {[%emt 0:01:38]} 38. Kd3 {[%emt 0:00:39]} Rh6 {[%emt 0:04:41]} 39. Ke4 {[%emt 0:02:14]} a5 {[%emt 0:03:51]} 40. f4 {[%emt 0:02:36]} Rh4 {[%emt 0:03:35]} 41. Rd8+ {[%emt 0:30:25]} Kc7 {[%emt 0:02:11]} 42. Rg8 {[%emt 0:00:00]} Rh2 {[%emt 0:10:38]} 43. Rg7+ {[%emt 0:00:00]} Kd6 {[%emt 0:01:23]} 44. Rxb7 {[%emt 0:00:00]} Re2+ {[%emt 0:00:44]} 45. Kd3 {[%emt 0:00:00]} Rxa2 {[%emt 0:00:23]} 46. Rb6+ {[%emt 0:00:00]} Kd7 {[%emt 0:00:45]} 47. f5 {[%emt 0:00:00]} exf5 {[%emt 0:01:21]} 48. gxf5 {[%emt 0:00:00]} Ke7 {[%emt 0:02:07]} 49. Re6+ {[%emt 0:00:00]} Kf7 {[%emt 0:00:28]} 50. Rc6 {[%emt 0:00:00]} Ra3 {[%emt 0:00:18]} 51. Rc7+ {[%emt 0:00:00]} Ke8 {[%emt 0:00:12]} 52. Kc2 {[%emt 0:00:00]} a4 {[%emt 0:00:41]} 53. bxa4 {[%emt 0:00:00]} Rxa4 {[%emt 0:00:05]} 54. Rxc5 {[%emt 0:00:00]} Ra3 {[%emt 0:00:10]} 55. Rd5 {[%emt 0:00:00]} Ke7 {[%emt 0:02:41]} 56. c5 {[%emt 0:00:00]} Ke8 {[%emt 0:03:06]} 57. Kb2 {[%emt 0:00:00]} Re3 {[%emt 0:02:24]} 58. c6 {[%emt 0:00:00]} Re7 {[%emt 0:00:50]} 59. Kc3 {[%emt 0:00:00]} Rc7 {[%emt 0:02:08]} 60. Rd6 {[%emt 0:00:00]} Ke7 {[%emt 0:00:06]} 61. Re6+ {[%emt 0:00:00]} Kf7 {[%emt 0:00:08]} 62. Kc4 {[%emt 0:00:00]} Ra7 {[%emt 0:00:10]} 63. Kb5 {[%emt 0:00:00]} Ra1 {[%emt 0:01:14]} 64. c7 {[%emt 0:00:00]} 1-0

[Event "Groningen Festival 2019-B"]
[Site "Groningen"]
[Date "2019.12.29"]
[Round "8.5"]
[White "Zuiderweg, Edwin"]
[Black "Van de Pavoordt, Max"]
[Result "1-0"]
[ECO "C17"]
[WhiteElo "1951"]
[BlackElo "2016"]
[Annotator "NA"]
[PlyCount "59"]
[EventDate "2019.12.15"]
[EventType "swiss"]
[EventCountry "NED"]
[SourceTitle "playchess.com"]
[Source "ChessBase"]
[SourceQuality "1"]
[TimeControl "40/5400+30:1800+30"]

1. e4 {[%emt 0:00:07]} e6 {[%emt 0:00:00]} 2. d4 {[%emt 0:00:31]} d5 {[%emt 0:00:00]} 3. Nc3 {[%emt 0:00:05]} Bb4 {[%emt 0:00:11]} 4. e5 {[%emt 0:00:05]} Ne7 {[%emt 0:00:18]} 5. Nf3 {[%emt 0:01:01]} c5 {[%emt 0:01:13]} 6. Bd2 {[%emt 0:00:29]} Bxc3 {[%emt 0:04:50]} 7. Bxc3 {[%emt 0:02:27]} b6 {[%emt 0:00:50]} 8. b3 {[%emt 0:02:29]} Ba6 {[%emt 0:02:04]} 9. Bxa6 {[%emt 0:00:49]} Nxa6 {[%emt 0:00:11]} 10. Qe2 {[%emt 0:15:19]} Nc7 {[%emt 0:03:27]} 11. O-O {[%emt 0:00:30]} Nc6 {[%emt 0:05:45]} 12. Bb2 {[%emt 0:03:59]} cxd4 {[%emt 0:02:40]} 13. Nxd4 {[%emt 0:00:31]} Nxd4 {[%emt 0:01:36]} 14. Bxd4 {[%emt 0:02:26]} Qd7 {[%emt 0:01:52]} 15. a4 {[%emt 0:00:21]} O-O {[%emt 0:03:33]} 16. f4 {[%emt 0:00:20]} Rfc8 {[%emt 0:06:53]} 17. Rf3 {[%emt 0:05:07]} Ne8 {[%emt 0:00:54]} 18. Raf1 {[%emt 0:04:46]} g6 {[%emt 0:02:17]} 19. Rh3 {[%emt 0:09:26]} h5 {[%emt 0:09:26]} 20. g4 {[%emt 0:01:25]} Ng7 {[%emt 0:03:01]} 21. gxh5 {[%emt 0:02:45]} Nxh5 {[%emt 0:01:54]} 22. f5 {[%emt 0:12:05]} exf5 {[%emt 0:04:05]} 23. Rxh5 {[%emt 0:01:18]} gxh5 {[%emt 0:02:12]} 24. Qxh5 {[%emt 0:00:21]} f6 {[%emt 0:01:37]} 25. exf6 {[%emt 0:02:58]} Rxc2 {[%emt 0:01:56]} 26. Kh1 {[%emt 0:09:12]} Kf8 {[%emt 0:01:58]} 27. Re1 {[%emt 0:05:39]} Qf7 {[%emt 0:01:32]} 28. Qh8+ {[%emt 0:00:15]} Qg8 {[%emt 0:00:12]} 29. Qh6+ {[%emt 0:00:07]} Kf7 {[%emt 0:00:07]} 30. Re7# {[%emt 0:00:06]} 1-0

[Event "Groningen Festival 2019-B"]
[Site "Groningen"]
[Date "2019.12.29"]
[Round "8.6"]
[White "Neuendorf, Max"]
[Black "Johnson, Matthew"]
[Result "1-0"]
[ECO "B01"]
[WhiteElo "1994"]
[BlackElo "1963"]
[Annotator "NA"]
[PlyCount "78"]
[EventDate "2019.12.15"]
[EventType "swiss"]
[EventCountry "NED"]
[SourceTitle "playchess.com"]
[Source "ChessBase"]
[SourceQuality "1"]
[TimeControl "40/5400+30:1800+30"]

1. e4 {[%emt 0:14:38]} d5 {[%emt 0:16:19]} 2. exd5 {[%emt 0:00:00]} Nf6 {[%emt 0:00:30]} 3. d4 {[%emt 0:00:00]} Qxd5 {[%emt 0:00:30]} 4. Nc3 {[%emt 0:00:00]} Qa5 {[%emt 0:00:30]} 5. Nf3 {[%emt 0:00:00]} Bf5 {[%emt 0:00:30]} 6. Be2 {[%emt 0:00:00]} Nc6 {[%emt 0:00:30]} 7. Bd2 {[%emt 0:00:00]} O-O-O {[%emt 0:00:30]} 8. Nb5 {[%emt 0:08:08]} Qb6 {[%emt 0:10:34]} 9. c4 {[%emt 0:13:43]} Nxd4 {[%emt 0:06:18]} 10. Nbxd4 {[%emt 0:02:19]} Rxd4 {[%emt 0:00:23]} 11. Nxd4 {[%emt 0:00:20]} Qxd4 {[%emt 0:00:34]} 12. Qb3 {[%emt 0:03:22]} Ng4 {[%emt 0:00:48]} 13. Bxg4 {[%emt 0:01:15]} Bxg4 {[%emt 0:01:16]} 14. Be3 {[%emt 0:00:46]} Qe5 {[%emt 0:00:32]} 15. Qa4 {[%emt 0:02:18]} c6 {[%emt 0:03:06]} 16. Qxa7 {[%emt 0:01:23]} e6 {[%emt 0:02:32]} 17. c5 {[%emt 0:01:23]} f5 {[%emt 0:01:05]} 18. Qa8+ {[%emt 0:07:15]} Kc7 {[%emt 0:00:05]} 19. Qa5+ {[%emt 0:00:18]} Kc8 {[%emt 0:02:21]} 20. Qc3 {[%emt 0:04:38]} Qxc3+ {[%emt 0:01:36]} 21. bxc3 {[%emt 0:00:10]} e5 {[%emt 0:00:22]} 22. f3 {[%emt 0:01:03]} Bh5 {[%emt 0:03:04]} 23. c4 {[%emt 0:01:48]} g5 {[%emt 0:02:11]} 24. g4 {[%emt 0:11:51]} fxg4 {[%emt 0:07:32]} 25. fxg4 {[%emt 0:01:06]} Bxg4 {[%emt 0:00:37]} 26. Kd2 {[%emt 0:14:11]} Bf3 {[%emt 0:01:12]} 27. Rhf1 {[%emt 0:00:46]} g4 {[%emt 0:00:07]} 28. a4 {[%emt 0:01:14]} Be7 {[%emt 0:13:24]} 29. a5 {[%emt 0:01:24]} Rd8+ {[%emt 0:01:36]} 30. Kc2 {[%emt 0:03:58]} Be4+ {[%emt 0:01:09]} 31. Kb2 {[%emt 0:00:08]} Rd3 {[%emt 0:04:46]} 32. Rf7 {[%emt 0:00:33]} Kd8 {[%emt 0:06:30]} 33. a6 {[%emt 0:05:10]} bxa6 {[%emt 0:00:06]} 34. Rxa6 {[%emt 0:00:39]} Ke8 {[%emt 0:00:19]} 35. Rg7 {[%emt 0:00:21]} Rxe3 {[%emt 0:06:55]} 36. Ra8+ {[%emt 0:00:56]} Bd8 {[%emt 0:02:03]} 37. Rg8+ {[%emt 0:00:37]} Kf7 {[%emt 0:03:49]} 38. Rgxd8 {[%emt 0:00:26]} Re2+ {[%emt 0:00:15]} 39. Kc3 {[%emt 0:03:43]} Rxh2 {[%emt 0:00:18]} 1-0

[Event "Groningen Festival 2019-B"]
[Site "Groningen"]
[Date "2019.12.30"]
[Round "9.2"]
[White "Novotny, David"]
[Black "De Vries, Leon"]
[Result "0-1"]
[ECO "D00"]
[WhiteElo "1810"]
[BlackElo "1934"]
[Annotator "NA"]
[PlyCount "64"]
[EventDate "2019.12.15"]
[EventType "swiss"]
[EventCountry "NED"]
[SourceTitle "playchess.com"]
[Source "ChessBase"]
[SourceQuality "1"]
[TimeControl "40/5400+30:1800+30"]

1. d4 {[%emt 0:07:39]} Nf6 {[%emt 0:00:00]} 2. Nc3 {[%emt 0:00:17]} d5 {[%emt 0:00:00]} 3. Bf4 {[%emt 0:00:11]} g6 {[%emt 0:00:19]} 4. e3 {[%emt 0:01:46]} Bg7 {[%emt 0:00:14]} 5. h4 {[%emt 0:05:27]} O-O {[%emt 0:00:27]} 6. h5 {[%emt 0:00:23]} c5 {[%emt 0:00:19]} 7. hxg6 {[%emt 0:03:22]} hxg6 {[%emt 0:00:56]} 8. Qd2 {[%emt 0:02:18]} Nc6 {[%emt 0:00:46]} 9. O-O-O {[%emt 0:01:57]} Qa5 {[%emt 0:01:38]} 10. f3 {[%emt 0:04:21]} Rd8 {[%emt 0:07:32]} 11. g4 {[%emt 0:01:49]} c4 {[%emt 0:15:17]} 12. Qh2 {[%emt 0:00:44]} b5 {[%emt 0:00:25]} 13. Bh6 {[%emt 0:05:44]} Bh8 {[%emt 0:00:41]} 14. Bf8 {[%emt 0:02:11]} Kxf8 {[%emt 0:04:14]} 15. Qxh8+ {[%emt 0:00:53]} Ng8 {[%emt 0:00:04]} 16. Rh7 {[%emt 0:00:56]} Be6 {[%emt 0:00:19]} 17. Qg7+ {[%emt 0:01:17]} Ke8 {[%emt 0:00:05]} 18. Qxg8+ {[%emt 0:00:14]} Kd7 {[%emt 0:00:05]} 19. Qg7 {[%emt 0:00:22]} b4 {[%emt 0:00:26]} 20. Nb1 {[%emt 0:18:38]} c3 {[%emt 0:10:41]} 21. bxc3 {[%emt 0:05:08]} bxc3 {[%emt 0:00:29]} 22. Ne2 {[%emt 0:00:56]} Nb4 {[%emt 0:01:42]} 23. Nexc3 {[%emt 0:01:20]} Rdc8 {[%emt 0:01:14]} 24. a3 {[%emt 0:12:01]} Rxc3 {[%emt 0:09:18]} 25. axb4 {[%emt 0:05:41]} Rxc2+ {[%emt 0:04:24]} 26. Kxc2 {[%emt 0:00:07]} Qa2+ {[%emt 0:00:08]} 27. Kd3 {[%emt 0:00:47]} Rc8 {[%emt 0:00:07]} 28. Nd2 {[%emt 0:02:01]} Qa6+ {[%emt 0:01:08]} 29. Nc4 {[%emt 0:00:40]} Qxc4+ {[%emt 0:03:19]} 30. Kd2 {[%emt 0:00:07]} Qxb4+ {[%emt 0:00:05]} 31. Kd3 {[%emt 0:01:23]} Qb2 {[%emt 0:04:04]} 32. Rc1 {[%emt 0:03:29]} Rxc1 {[%emt 0:00:43]} 0-1

[Event "Groningen Festival 2019-B"]
[Site "Groningen"]
[Date "2019.12.30"]
[Round "9.3"]
[White "Zuiderweg, Edwin"]
[Black "Ritter, Uwe"]
[Result "0-1"]
[ECO "B26"]
[WhiteElo "1951"]
[BlackElo "1981"]
[Annotator "NA"]
[PlyCount "70"]
[EventDate "2019.12.15"]
[EventType "swiss"]
[EventCountry "NED"]
[SourceTitle "playchess.com"]
[Source "ChessBase"]
[SourceQuality "1"]
[TimeControl "40/5400+30:1800+30"]

1. e4 {[%emt 0:00:00]} c5 {[%emt 0:00:00]} 2. Nc3 {[%emt 0:00:11]} Nc6 {[%emt 0:00:00]} 3. g3 {[%emt 0:00:13]} g6 {[%emt 0:00:00]} 4. Bg2 {[%emt 0:00:08]} Bg7 {[%emt 0:00:00]} 5. d3 {[%emt 0:00:10]} d6 {[%emt 0:00:00]} 6. Be3 {[%emt 0:00:31]} e5 {[%emt 0:00:00]} 7. Qd2 {[%emt 0:07:54]} Nge7 {[%emt 0:01:16]} 8. Nce2 {[%emt 0:09:45]} Nd4 {[%emt 0:01:54]} 9. c3 {[%emt 0:02:11]} Nxe2 {[%emt 0:00:08]} 10. Nxe2 {[%emt 0:00:05]} O-O {[%emt 0:01:43]} 11. Bh6 {[%emt 0:00:22]} d5 {[%emt 0:09:09]} 12. Bxg7 {[%emt 0:22:46]} Kxg7 {[%emt 0:00:02]} 13. Rd1 {[%emt 0:01:20]} Be6 {[%emt 0:03:23]} 14. b3 {[%emt 0:00:30]} Qd7 {[%emt 0:00:44]} 15. O-O {[%emt 0:00:20]} Rad8 {[%emt 0:02:44]} 16. Qc2 {[%emt 0:02:33]} f5 {[%emt 0:02:01]} 17. c4 {[%emt 0:02:23]} d4 {[%emt 0:10:07]} 18. f4 {[%emt 0:05:56]} fxe4 {[%emt 0:00:35]} 19. Bxe4 {[%emt 0:00:25]} Bh3 {[%emt 0:00:50]} 20. Rf2 {[%emt 0:00:54]} Nf5 {[%emt 0:00:22]} 21. Bxf5 {[%emt 0:02:05]} Qxf5 {[%emt 0:01:15]} 22. Kh1 {[%emt 0:03:46]} Qe6 {[%emt 0:05:01]} 23. Qd2 {[%emt 0:02:46]} Rde8 {[%emt 0:01:55]} 24. Nc1 {[%emt 0:03:28]} exf4 {[%emt 0:04:38]} 25. gxf4 {[%emt 0:06:20]} Qc6+ {[%emt 0:00:12]} 26. Kg1 {[%emt 0:00:14]} Re3 {[%emt 0:00:03]} 27. Ne2 {[%emt 0:01:57]} Rf3 {[%emt 0:09:14]} 28. Qe1 {[%emt 0:03:53]} Re8 {[%emt 0:01:45]} 29. Rd2 {[%emt 0:01:24]} Rfe3 {[%emt 0:00:11]} 30. Qc1 {[%emt 0:01:53]} Qe6 {[%emt 0:01:04]} 31. Qb2 {[%emt 0:02:06]} Qg4+ {[%emt 0:05:34]} 32. Kh1 {[%emt 0:00:38]} Rf3 {[%emt 0:00:40]} 33. Ng1 {[%emt 0:04:30]} Qxg1+ {[%emt 0:00:17]} 34. Kxg1 {[%emt 0:00:13]} Re1+ {[%emt 0:00:01]} 35. Rf1 {[%emt 0:00:15]} Rfxf1# {[%emt 0:00:02]} 0-1